bitfinex/quotes_SOLUSD_20260119
["timestamp","ask_amount","ask_price","bid_price","bid_amount"]
[1768812391341,2.10909508,133.86,133.83,9.87217606]
[1768812391650,2.10909508,133.85,133.83,9.87217606]
[1768812391826,7.47060738,133.86,133.83,19.47002953]
[1768812391827,2.10909508,133.86,133.83,19.47002953]
[1768812392068,2.10909508,133.86,133.83,9.59785347]
[1768812392453,2.10909508,133.87,133.84,2.12594436]
[1768812392646,2.10909508,133.88,133.84,2.12594436]
[1768812393026,2.10909508,133.88,133.84,23.20306844]
[1768812393553,2.10909508,133.87,133.84,23.20306844]
[1768812393934,2.10909508,133.87,133.84,30.67441264]
[1768812397350,2.10909508,133.88,133.85,2.12594436]
[1768812399968,2.10909508,133.88,133.84,30.81315932]
[1768812400248,7.46937928,133.88,133.84,30.81315932]
[1768812400440,2.23188919,133.87,133.84,30.81315932]
[1768812401459,2.23188919,133.87,133.83,72.33660837]
[1768812401765,2.23188919,133.87,133.83,79.80598765]
[1768812403433,2.23188919,133.87,133.83,17.20598765]
[1768812404758,2.23188919,133.87,133.84,2.26469104]
[1768812405148,2.23188919,133.87,133.84,21.03755043]
[1768812406966,2.23188919,133.87,133.84,28.50889848]
[1768812414368,2.23188919,133.87,133.84,9.73603909]
[1768812414551,2.23188919,133.87,133.84,17.20575331]
[1768812414975,2.0987966,133.86,133.84,9.73440526]
[1768812415149,2.03879659,133.86,133.84,2.26469104]
[1768812416973,7.46997042,133.87,133.84,2.26469104]
[1768812417167,9.56876702,133.87,133.84,2.26469104]
[1768812417987,2.0987966,133.86,133.84,2.26469104]
[1768812418271,2.0387966,133.86,133.84,2.26469104]
[1768812420170,2.0387966,133.86,133.83,28.37506924]
[1768812420662,2.0387966,133.86,133.84,9.60222667]
[1768812421677,2.0387966,133.86,133.84,2.13064515]
[1768812423676,2.0987966,133.87,133.84,9.6022463]
[1768812423875,2.40107339,133.87,133.83,26.24436284]
[1768812424174,2.0987966,133.85,133.82,9.60319807]
[1768812424376,2.0987966,133.85,133.82,28.37570587]
[1768812425473,2.0987966,133.85,133.83,2.13064515]
[1768812427267,2.0987966,133.84,133.81,72.2036123]
[1768812427460,4.49986999,133.84,133.81,72.2036123]
[1768812427661,4.49986999,133.84,133.81,90.8770512]
[1768812427978,2.0987966,133.84,133.81,90.8770512]
[1768812428674,2.0987966,133.85,133.82,2.13064515]
[1768812428869,4.49986999,133.86,133.82,2.13064515]
[1768812429073,11.97045046,133.86,133.82,2.13064515]
[1768812429380,2.0987966,133.85,133.82,2.13064515]
[1768812429785,2.0987966,133.85,133.82,9.60298924]
[1768812430664,2.0987966,133.85,133.83,2.13064515]
[1768812430865,2.0987966,133.85,133.82,9.60298924]
[1768812432073,2.0987966,133.84,133.82,2.13064515]
[1768812432279,2.0987966,133.84,133.82,7.47253662]
[1768812432873,2.0987966,133.85,133.82,9.6030394]
[1768812434597,2.0987966,133.85,133.82,17.07266067]
[1768812434772,4.49986999,133.85,133.82,17.07266067]
[1768812434962,2.0987966,133.85,133.82,35.75447205]
[1768812435283,2.0987966,133.85,133.83,2.13064515]
[1768812435481,2.0987966,133.85,133.82,33.6238269]
[1768812436884,2.0987966,133.86,133.82,33.6238269]
[1768812437587,2.0987966,133.87,133.83,2.13064515]
[1768812439480,2.0987966,133.87,133.84,9.60225304]
[1768812439672,2.0987966,133.87,133.85,2.13064515]
[1768812439875,2.0987966,133.87,133.85,64.73064515]
[1768812440585,4.49986999,133.88,133.85,64.73064515]
[1768812441092,4.49986999,133.88,133.85,72.20139087]
[1768812441290,2.0987966,133.87,133.85,62.6]
[1768812441592,4.49986999,133.87,133.85,62.6]
[1768812442487,2.0987966,133.87,133.85,62.6]
[1768812442691,4.49986999,133.87,133.85,62.6]
[1768812444392,4.49986999,133.87,133.84,88.56214771]
[1768812445788,2.0987966,133.87,133.84,88.56214771]
[1768812445993,4.49986999,133.87,133.84,88.56214771]
[1768812446196,4.43987,133.87,133.84,88.56214771]
[1768812446595,2.03879661,133.87,133.84,88.56214771]
[1768812446903,4.43987,133.87,133.84,88.56214771]
[1768812447197,2.40107339,133.86,133.84,88.56214771]
[1768812448093,2.3410734,133.86,133.84,88.56214771]
[1768812448702,4.61073634,133.88,133.85,2.1175497]
[1768812448995,4.61073634,133.87,133.85,2.1175497]
[1768812449786,4.61073634,133.87,133.84,88.54905226]
[1768812450495,2.40107339,133.85,133.84,62.6]
[1768812454791,2.3410734,133.85,133.84,62.6]
[1768812454996,2.40182848,133.85,133.84,62.6]
[1768812455807,4.61149143,133.86,133.84,62.6]
[1768812455998,2.40182848,133.85,133.84,62.6]
[1768812456199,2.34182849,133.85,133.83,79.65916474]
[1768812456603,2.20966295,133.87,133.84,9.58915759]
[1768812456801,2.40182848,133.86,133.84,9.58915759]
[1768812457592,2.40182848,133.86,133.84,12.57813573]
[1768812459304,2.20966295,133.87,133.84,12.57813573]
[1768812459622,2.40182848,133.86,133.84,12.57813573]
[1768812460809,2.20966295,133.87,133.84,12.57813573]
[1768812461009,2.40182848,133.86,133.84,5.10652784]
[1768812461510,4.70661922,133.86,133.84,5.10652784]
[1768812462008,2.30479074,133.87,133.84,75.17803809]
[1768812462308,2.40182848,133.86,133.84,75.17803809]
[1768812462803,2.30479074,133.87,133.84,75.17803809]
[1768812463009,4.70661922,133.86,133.84,75.17803809]
[1768812463810,4.70661922,133.86,133.84,67.70652784]
[1768812464005,4.70661922,133.86,133.84,65.58897814]
[1768812464203,4.70661922,133.86,133.84,62.6]
[1768812464605,4.70661922,133.86,133.84,64.89616042]
[1768812465514,2.40182848,133.86,133.84,64.89616042]
[1768812465802,2.40182848,133.86,133.84,72.36776831]
[1768812466411,2.34182849,133.86,133.84,72.36776831]
[1768812467997,2.34182849,133.86,133.84,2.29616042]
[1768812468398,2.40182848,133.85,133.84,2.29616042]
[1768812469515,9.77481432,133.87,133.84,2.29616042]
[1768812469714,2.40182848,133.85,133.84,2.29616042]
[1768812471607,2.30479074,133.84,133.81,2.29616042]
[1768812471904,2.40182848,133.83,133.81,2.29616042]
[1768812472621,2.40182848,133.83,133.82,2.26061635]
[1768812472916,2.40182848,133.83,133.81,7.47301706]
[1768812473422,2.40182848,133.83,133.81,70.07301706]
[1768812473722,2.40182848,133.82,133.81,62.6]
[1768812474212,2.34182849,133.82,133.81,62.6]
[1768812474417,4.67334207,133.82,133.79,67.8775975]
[1768812474631,2.40182848,133.81,133.79,67.8775975]
[1768812474817,4.73334206,133.82,133.79,67.8775975]
[1768812475118,2.40182848,133.82,133.8,8.01052247]
[1768812475521,4.73334206,133.83,133.8,8.01052247]
[1768812477824,2.40182848,133.82,133.8,0.53671329]
[1768812478314,2.40182848,133.82,133.8,8.01048487]
[1768812478515,2.33151358,133.83,133.8,8.01048487]
[1768812478828,2.33151358,133.83,133.8,15.48243797]
[1768812479125,2.33151358,133.83,133.8,8.01048487]
[1768812480004,2.33151358,133.83,133.8,0.53671329]
[1768812480199,2.33151358,133.82,133.79,52.93226042]
[1768812480636,2.33151358,133.82,133.77,29.1727549]
[1768812480926,2.33151358,133.82,133.77,10.495626]
[1768812481316,2.33151358,133.8,133.77,10.495626]
[1768812484123,2.33151358,133.8,133.77,29.17604145]
[1768812488713,2.33151358,133.8,133.77,17.97112077]
[1768812488912,2.33151358,133.8,133.77,36.65153622]
[1768812489830,2.33151358,133.81,133.78,0.53662457]
[1768812490612,2.33151358,133.81,133.78,19.21481381]
[1768812490919,2.33151358,133.82,133.79,0.53641593]
[1768812491313,2.33151358,133.82,133.79,19.21460517]
[1768812491924,2.33151358,133.82,133.79,26.68875155]
[1768812492720,2.33151358,133.82,133.79,26.15233562]
[1768812494613,2.33151358,133.82,133.79,7.47414638]
[1768812497038,2.33151358,133.82,133.79,26.15233562]
[1768812497837,2.33151358,133.81,133.78,60.94283824]
[1768812498136,2.33151358,133.81,133.78,79.62102748]
[1768812499226,9.80484622,133.81,133.78,72.14626783]
[1768812499426,9.80484622,133.81,133.78,53.46807859]
[1768812499640,2.33151358,133.8,133.78,52.93226042]
[1768812502538,9.71841583,133.82,133.78,53.46752085]
[1768812503021,9.71841583,133.82,133.78,0.53526043]
[1768812504673,9.71774681,133.83,133.79,0.53508295]
[1768812504844,9.71671037,133.85,133.8,0.53508295]
[1768812505018,2.24541736,133.85,133.81,0.53499573]
[1768812505737,2.24541736,133.85,133.81,2.93682421]
[1768812505937,2.24541736,133.86,133.82,0.53499573]
[1768812507141,2.24541736,133.87,133.84,0.5348243]
[1768812508447,2.24541736,133.87,133.84,8.00636594]
[1768812509145,4.64724584,133.87,133.84,8.00636594]
[1768812511048,4.64724584,133.86,133.83,8.0063959]
[1768812511344,2.24541736,133.86,133.83,8.0063959]
[1768812511944,2.24541736,133.86,133.84,7.47144429]
[1768812512247,4.64724584,133.87,133.84,7.47144429]
[1768812512431,4.58724585,133.87,133.84,7.47144429]
[1768812513348,4.52724586,133.87,133.84,7.47144429]
[1768812513936,2.40182848,133.87,133.83,8.0063371]
[1768812514644,7.46953813,133.88,133.83,8.0063371]
[1768812514847,7.46953813,133.88,133.84,8.12558756]
[1768812515051,23.92905624,133.89,133.84,8.12558756]
[1768812515348,2.24541736,133.88,133.84,8.12558756]
[1768812515550,2.18541737,133.88,133.84,8.12558756]
[1768812515754,2.12541738,133.88,133.84,8.12558756]
[1768812516246,7.46946346,133.88,133.84,8.12558756]
[1768812517652,2.24541736,133.87,133.84,8.12558756]
[1768812517844,2.18541737,133.87,133.84,8.12558756]
[1768812518351,1.73451576,133.87,133.84,8.12558756]
[1768812518933,1.73451576,133.87,133.84,7.47133306]
[1768812520246,1.73451576,133.87,133.84,8.75603834]
[1768812520444,1.73451576,133.87,133.84,7.47133306]
[1768812523559,1.73451576,133.87,133.84,60.40359348]
[1768812524453,1.67451577,133.87,133.84,60.40359348]
[1768812525159,1.61451578,133.87,133.84,60.40359348]
[1768812525542,1.55451579,133.87,133.84,60.40359348]
[1768812525857,1.55451579,133.87,133.84,52.93226042]
[1768812526559,7.47005184,133.87,133.84,52.93226042]
[1768812527755,2.14956435,133.86,133.84,52.93226042]
[1768812527934,9.62010112,133.86,133.84,52.93226042]
[1768812528859,2.14956435,133.85,133.84,48.2623916]
[1768812529057,2.14956435,133.85,133.84,45.05760948]
[1768812529552,7.47053677,133.86,133.82,2.21728061]
[1768812529760,26.14374513,133.88,133.82,2.21728061]
[1768812531953,26.14374513,133.88,133.83,2.21728061]
[1768812536652,26.14374513,133.88,133.82,2.32841456]
[1768812542258,26.14374513,133.88,133.83,2.32841456]
[1768812546577,26.14374513,133.88,133.82,2.32841456]
[1768812546762,26.14374513,133.88,133.83,2.32841456]
[1768812546961,7.46937556,133.88,133.84,2.32841456]
[1768812547165,23.92902563,133.89,133.84,2.32841456]
[1768812548059,23.92902563,133.89,133.85,2.32841456]
[1768812552079,42.60106984,133.89,133.85,2.32841456]
[1768812562995,2.2009587,133.88,133.82,67.4766208]
[1768812563199,2.2009587,133.88,133.82,45.05760948]
[1768812564180,2.2009587,133.86,133.82,45.05760948]
[1768812564709,2.2009587,133.86,133.81,29.89369528]
[1768812564892,2.2009587,133.86,133.82,2.08677105]
[1768812565894,7.47104968,133.85,133.82,2.08677105]
[1768812575500,9.67168518,133.86,133.83,2.08677105]
[1768812579507,2.14859134,133.85,133.82,2.08677105]
[1768812579679,2.14859134,133.85,133.81,18.67483379]
[1768812579680,2.14859134,133.85,133.8,2.08677105]
[1768812581507,9.60859104,133.84,133.8,2.08677105]
[1768812581887,9.60859104,133.84,133.81,24.61849407]
[1768812583903,9.60859104,133.84,133.79,2.19445551]
[1768812583904,2.12946488,133.83,133.79,2.19445551]
[1768812584085,2.12946488,133.83,133.8,24.62017032]
[1768812584785,9.59849493,133.82,133.8,22.42571481]
[1768812584991,9.59849493,133.82,133.79,2.19445551]
[1768812585309,9.59849493,133.82,133.8,20.87347523]
[1768812586092,20.79944193,133.83,133.8,20.87347523]
[1768812586294,9.59091688,133.83,133.8,20.87347523]
[1768812592316,7.47202716,133.84,133.81,2.19445551]
[1768812592717,7.47202716,133.84,133.81,20.87269186]
[1768812593222,9.56310789,133.84,133.81,20.87269186]
[1768812600003,9.54036805,133.85,133.82,2.01240536]
[1768812600508,9.54036805,133.85,133.82,20.68790983]
[1768812603227,9.54036805,133.85,133.83,2.01240536]
[1768812603822,9.54036805,133.85,133.82,20.68790983]
[1768812607226,9.52007214,133.85,133.82,20.68790983]
[1768812608425,9.51730439,133.85,133.82,20.68790983]
[1768812609023,2.04327574,133.84,133.82,18.67550447]
[1768812609221,2.04327574,133.84,133.81,2.01240536]
[1768812609414,2.04327574,133.84,133.81,20.68790983]
[1768812609815,7.4712927,133.85,133.82,2.01240536]
[1768812610015,9.51456844,133.85,133.82,2.01240536]
[1768812610330,2.04057121,133.87,133.83,2.01240536]
[1768812610718,2.04057121,133.87,133.83,23.08930599]
[1768812611527,2.03789774,133.86,133.83,23.08930599]
[1768812611707,9.50851862,133.86,133.83,23.08930599]
[1768812612736,35.03377768,133.88,133.85,2.01240536]
[1768812612737,2.03525498,133.88,133.85,2.01240536]
[1768812612915,2.03525498,133.88,133.85,4.41380152]
[1768812613115,2.03525498,133.88,133.85,2.01240536]
[1768812613316,2.03525498,133.88,133.85,20.68327562]
[1768812613621,9.5047017,133.88,133.85,20.68327562]
[1768812614441,9.5047017,133.88,133.86,2.01240536]
[1768812614442,7.46944672,133.88,133.86,2.01240536]
[1768812615134,9.49695417,133.88,133.86,2.01240536]
[1768812617536,9.49695417,133.88,133.85,20.68327562]
[1768812620548,9.49695417,133.88,133.85,2.01240536]
[1768812620720,2.0151769,133.87,133.83,20.68327562]
[1768812622239,2.0151769,133.87,133.82,64.61240536]
[1768812622441,2.0151769,133.87,133.82,24.43309218]
[1768812623149,2.00581264,133.85,133.82,31.9056759]
[1768812623335,9.47630419,133.86,133.83,2.12645675]
[1768812628031,9.47630419,133.86,133.83,24.54714357]
[1768812630750,9.47630419,133.86,133.84,2.12645675]
[1768812632642,9.47630419,133.86,133.82,7.47258372]
[1768812632853,9.47630419,133.86,133.83,22.42068682]
[1768812633151,9.47630419,133.86,133.8,81.28368518]
[1768812633152,2.16201134,133.85,133.8,7.47355635]
[1768812633653,2.16201134,133.85,133.8,26.14902138]
[1768812634151,9.63361923,133.84,133.8,26.14902138]
[1768812634736,9.63361923,133.84,133.81,2.12645675]
[1768812637133,16.36,133.88,133.81,2.12645675]
[1768812637336,16.36,133.88,133.82,2.12645675]
[1768812638251,26.1447673,133.87,133.82,2.12645675]
[1768812639269,1.93739895,133.86,133.82,2.12645675]
[1768812640339,1.93739895,133.86,133.82,2.07216185]
[1768812641161,7.47104968,133.85,133.82,2.07216185]
[1768812642558,7.47059102,133.86,133.83,2.07216185]
[1768812642743,1.93104048,133.87,133.83,2.07216185]
[1768812642943,1.93104048,133.87,133.83,9.54467089]
[1768812643144,1.93104048,133.87,133.84,2.07216185]
[1768812643459,9.40114202,133.87,133.84,2.07216185]
[1768812648266,9.40114202,133.87,133.83,4.8e-06]
[1768812649462,9.40114202,133.87,133.83,7.47214929]
[1768812650157,9.40114202,133.87,133.84,2.07216185]
[1768812650463,9.40114202,133.87,133.84,2.04216185]
[1768812651459,7.47010154,133.87,133.84,2.04216185]
[1768812651664,9.56891965,133.87,133.84,2.04216185]
[1768812654968,9.56891965,133.87,133.84,2.01216185]
[1768812656669,9.56891965,133.87,133.84,1.98216185]
[1768812660269,2.09881811,133.87,133.85,2.02170363]
[1768812660454,25.88932143,133.88,133.85,1.99170363]
[1768812660768,2.05975934,133.87,133.85,1.99170363]
[1768812660973,2.05975934,133.87,133.83,4.8e-06]
[1768812662379,9.53025089,133.86,133.83,2.02170843]
[1768812675390,2.05975934,133.85,133.83,4.8e-06]
[1768812675566,2.05975934,133.85,133.83,2.02170843]
[1768812675766,2.05975934,133.86,133.83,2.02170843]
[1768812676486,2.05975934,133.86,133.83,4.8e-06]
[1768812677465,9.53080902,133.85,133.83,4.8e-06]
[1768812677884,7.47104968,133.85,133.83,4.8e-06]
[1768812681482,9.53050602,133.86,133.83,2.02170843]
[1768812682062,7.47074668,133.86,133.83,2.02170843]
[1768812682789,9.52996661,133.87,133.83,2.02170843]
[1768812682985,9.52996661,133.87,133.84,2.06094025]
[1768812683192,7.46959111,133.88,133.85,2.40178692]
[1768812683388,7.46959111,133.88,133.86,2.06094025]
[1768812683995,0.1,133.89,133.87,2.06094025]
[1768812684692,0.1,133.89,133.88,2.06094025]
[1768812684878,9.50740794,133.91,133.88,2.06094025]
[1768812685591,2.03948201,133.9,133.88,2.06094025]
[1768812686193,9.50740794,133.91,133.88,2.06094025]
[1768812686702,2.03948201,133.9,133.88,2.06094025]
[1768812686863,9.50740794,133.91,133.88,2.06094025]
[1768812687675,2.03948201,133.9,133.88,2.06094025]
[1768812687881,2.03948201,133.9,133.87,9.53075982]
[1768812689305,2.03948201,133.9,133.88,2.06094025]
[1768812689880,9.50740794,133.91,133.88,2.06094025]
[1768812691096,2.03948201,133.9,133.88,2.06094025]
[1768812692586,7.46794144,133.91,133.88,2.06094025]
[1768812692789,9.50742345,133.91,133.88,2.06094025]
[1768812693374,2.03948201,133.9,133.87,20.72826017]
[1768812693576,2.03948201,133.9,133.87,2.06094025]
[1768812694069,9.5082077,133.9,133.87,2.06094025]
[1768812694602,2.03948201,133.89,133.86,20.72938052]
[1768812696202,2.03948201,133.88,133.86,18.66844027]
[1768812696374,1.98345869,133.88,133.85,64.66094025]
[1768812696575,1.98345869,133.88,133.85,2.06094025]
[1768812697176,1.98345869,133.88,133.84,24.47827632]
[1768812697499,1.98345869,133.88,133.83,2.06094505]
[1768812697704,16.36,133.88,133.83,2.06094505]
[1768812698293,9.50997356,133.86,133.83,2.06094505]
[1768812700991,1.97728226,133.85,133.83,2.06094505]
[1768812701299,1.97728226,133.85,133.83,4.8e-06]
[1768812703190,7.47160789,133.84,133.83,4.8e-06]
[1768812703704,9.44889015,133.84,133.83,4.8e-06]
[1768812704298,7.4116079,133.84,133.83,4.8e-06]
[1768812707105,7.4116079,133.84,133.83,10.4909258]
[1768812707598,7.35160791,133.84,133.83,10.4909258]
[1768812709591,7.29160792,133.84,133.83,10.4909258]
[1768812711405,9.26889018,133.84,133.82,18.67622889]
[1768812711711,9.26889018,133.84,133.81,2.1287123]
[1768812711712,9.17842121,133.84,133.81,2.1287123]
[1768812711884,7.29160792,133.84,133.81,2.1287123]
[1768812712089,7.29160792,133.84,133.82,2.1287123]
[1768812713210,7.29160792,133.84,133.82,20.80494119]
[1768812714588,7.29160792,133.84,133.82,2.1287123]
[1768812717507,7.29160792,133.84,133.82,20.80494119]
[1768812717898,9.32549861,133.84,133.79,7.47416766]
[1768812718408,9.32549861,133.84,133.81,22.42403856]
[1768812719908,9.32549861,133.84,133.81,24.36246361]
[1768812720416,9.32549861,133.84,133.82,1.93842505]
[1768812721216,7.29160792,133.84,133.82,1.93842505]
[1768812721596,7.29160792,133.84,133.83,1.93842505]
[1768812721916,7.47131376,133.85,133.83,1.93842505]
[1768812723115,2.03389069,133.85,133.83,1.93842505]
[1768812724522,2.03389069,133.85,133.82,22.42236256]
[1768812724696,2.03389069,133.85,133.8,7.47365385]
[1768812724902,2.03389069,133.85,133.81,22.42236256]
[1768812725220,9.50549858,133.84,133.81,22.42236256]
[1768812726622,9.50549858,133.84,133.81,24.36078761]
[1768812727117,2.03389069,133.83,133.81,22.42236256]
[1768812727423,2.03389069,133.83,133.79,1.93842505]
[1768812729026,7.47272455,133.82,133.79,1.93842505]
[1768812729403,9.50661524,133.82,133.79,1.93842505]
[1768812734638,7.47272455,133.82,133.79,1.93842505]
[1768812735012,2.03389069,133.84,133.8,1.93842505]
[1768812735338,9.505576,133.84,133.8,1.93842505]
[1768812735908,2.03389069,133.84,133.8,1.93842505]
[1768812736604,2.03389069,133.84,133.8,7.47342428]
[1768812736905,2.03389069,133.84,133.81,1.93842505]
[1768812739125,9.5055258,133.84,133.81,1.93842505]
[1768812741229,2.03389069,133.84,133.81,9.41167922]
[1768812747821,9.50552058,133.84,133.81,1.93842505]
[1768812750015,1.93698533,133.83,133.79,90.77804296]
[1768812750216,1.93698533,133.83,133.79,72.10106643]
[1768812750417,1.93698533,133.83,133.8,2.02692169]
[1768812756345,1.93698533,133.83,133.8,9.50074819]
[1768812758648,1.93698533,133.83,133.8,9.50063201]
[1768812759533,1.93698533,133.84,133.81,2.02692169]
[1768812761143,1.93698533,133.84,133.81,9.50018396]
[1768812767046,9.40876491,133.84,133.81,2.02692169]
[1768812769264,1.92248487,133.83,133.81,2.02692169]
[1768812769634,1.92248487,133.85,133.81,2.02692169]
[1768812771056,1.92248487,133.83,133.8,9.51732727]
[1768812772458,1.92248487,133.83,133.81,2.04382476]
[1768812773241,9.39485237,133.83,133.8,1.96816175]
[1768812777063,1.98680285,133.85,133.81,1.96816175]
[1768812778456,7.47136796,133.85,133.81,1.96816175]
[1768812778763,1.98680285,133.84,133.81,1.96816175]
[1768812779956,1.98680285,133.84,133.81,9.44143137]
[1768812781055,1.98680285,133.87,133.82,1.96816175]
[1768812781463,1.98680285,133.87,133.83,1.96816175]
[1768812782155,1.98680285,133.86,133.83,1.96816175]
[1768812782663,7.47006557,133.87,133.83,1.96816175]
[1768812782664,9.45686842,133.87,133.84,1.96816175]
[1768812785666,1.98680285,133.87,133.84,9.4397231]
[1768812787552,1.98680285,133.87,133.85,1.96816175]
[1768812787756,1.98680285,133.9,133.86,1.96816175]
[1768812789450,1.98680285,133.89,133.86,1.96816175]
[1768812790858,9.45572984,133.89,133.86,1.96816175]
[1768812793170,1.98680285,133.89,133.86,1.96816175]
[1768812794573,9.45481848,133.91,133.87,1.96816175]
[1768812794764,18.34680285,133.92,133.87,1.96816175]
[1768812794956,9.45476889,133.91,133.88,1.96816175]
[1768812803481,1.92597275,133.9,133.85,64.67646034]
[1768812803889,1.92597275,133.9,133.85,62.6]
[1768812804262,1.92597275,133.9,133.85,64.67646034]
[1768812804864,1.92597275,133.88,133.85,64.67646034]
[1768812806188,9.39559015,133.88,133.85,64.67646034]
[1768812806984,7.4696174,133.88,133.85,64.67646034]
[1768812807285,1.92597275,133.88,133.85,64.67646034]
[1768812807480,1.92597275,133.88,133.84,2.07646034]
[1768812808389,7.46993351,133.87,133.84,2.07646034]
[1768812808683,9.39590626,133.87,133.84,2.07646034]
[1768812809665,1.92597275,133.86,133.83,9.54836492]
[1768812809873,1.92597275,133.86,133.83,2.07646034]
[1768812810869,1.92597275,133.87,133.84,2.07646034]
[1768812811989,9.39621493,133.87,133.84,2.07646034]
[1768812815190,1.92597275,133.86,133.84,2.07646034]
[1768812815800,9.39621493,133.87,133.84,2.07646034]
[1768812821190,1.92597275,133.87,133.84,2.07646034]
[1768812821597,9.39591993,133.87,133.84,2.07646034]
[1768812821893,2.05566824,133.86,133.83,9.4878493]
[1768812822097,2.05566824,133.86,133.84,2.01569876]
[1768812822302,2.05566824,133.86,133.83,9.4878493]
[1768812822986,2.05566824,133.85,133.82,9.48822622]
[1768812823191,2.05566824,133.85,133.82,2.01569876]
[1768812824000,2.05566824,133.85,133.81,2.01569876]
[1768812824583,2.05566824,133.85,133.82,7.47253978]
[1768812824784,2.05566824,133.85,133.82,9.48823854]
[1768812827001,2.05566824,133.87,133.83,2.01569876]
[1768812829094,2.05566824,133.87,133.83,7.47177781]
[1768812829406,2.05566824,133.87,133.84,2.01569876]
[1768812836802,9.52566717,133.87,133.84,2.01569876]
[1768812837005,2.03102204,133.86,133.83,1.87780246]
[1768812838510,9.50169441,133.86,133.83,1.87780246]
[1768812840009,2.03102204,133.85,133.82,9.35034867]
[1768812840385,2.03102204,133.85,133.83,1.87780246]
[1768812840807,2.03102204,133.87,133.83,1.87780246]
[1768812841199,2.03102204,133.87,133.82,7.47254621]
[1768812841200,2.03102204,133.87,133.82,1.87780246]
[1768812841701,2.03102204,133.87,133.81,64.47780246]
[1768812842007,2.03102204,133.85,133.8,1.87780246]
[1768812843608,2.03102204,133.83,133.8,1.87780246]
[1768812845117,9.50323847,133.83,133.8,1.87780246]
[1768812845292,2.03102204,133.82,133.79,1.87780246]
[1768812845493,2.03102204,133.82,133.78,1.87780246]
[1768812847513,2.03102204,133.81,133.78,1.87780246]
[1768812848805,2.03102204,133.81,133.78,9.35271733]
[1768812849010,1e-08,133.81,133.79,1.87780246]
[1768812850322,26.14867388,133.85,133.79,1.87780246]
[1768812850910,2.03102204,133.84,133.79,1.87780246]
[1768812851423,7.47216618,133.83,133.79,1.87780246]
[1768812851622,9.50318822,133.83,133.79,1.87780246]
[1768812862013,2.03102204,133.82,133.79,1.87780246]
[1768812867940,2.03102204,133.82,133.79,9.35215971]
[1768812869143,9.50378021,133.82,133.79,9.35215971]
[1768812870326,2.03102204,133.82,133.79,9.35215971]
[1768812872531,1.97102205,133.82,133.79,9.35215971]
[1768812874146,26.14763819,133.86,133.8,1.88146516]
[1768812874529,1.91299922,133.85,133.82,1.88146516]
[1768812874932,9.38349077,133.86,133.82,1.88146516]
[1768812876527,9.38349077,133.86,133.83,1.88146516]
[1768812876922,7.47001831,133.87,133.83,1.88146516]
[1768812877128,1.91299922,133.86,133.83,1.88146516]
[1768812879149,9.38350256,133.86,133.83,1.88146516]
[1768812880358,1.91299922,133.86,133.83,9.35362032]
[1768812888752,9.38355829,133.86,133.83,1.88146516]
[1768812889355,9.38355829,133.86,133.83,9.35361695]
[1768812889561,1.91299922,133.86,133.83,9.35361695]
[1768812897265,1.85299923,133.86,133.83,9.35361695]
[1768812900072,1.79299924,133.86,133.83,9.35361695]
[1768812901472,7.47050637,133.86,133.82,7.4727042]
[1768812901676,7.47050637,133.86,133.82,9.48081701]
[1768812902057,1.9090815,133.85,133.82,9.48081701]
[1768812903160,9.37958787,133.86,133.83,2.00811281]
[1768812904073,1.9090815,133.85,133.83,2.00811281]
[1768812904276,1.9090815,133.87,133.83,2.00811281]
[1768812904657,1.9090815,133.87,133.84,2.00811281]
[1768812905874,1.9090815,133.86,133.84,2.00811281]
[1768812906263,1.9090815,133.89,133.85,2.00811281]
[1768812907559,1.9090815,133.89,133.86,2.00811281]
[1768812907759,9.3779623,133.89,133.86,2.00811281]
[1768812912288,1.9090815,133.89,133.86,9.47856413]
[1768812914769,9.37789921,133.89,133.86,2.00811281]
[1768812916890,1.9090815,133.88,133.83,18.67901972]
[1768812917094,1.9090815,133.87,133.8,9.48157826]
[1768812917275,1.9090815,133.87,133.81,7.47328012]
[1768812917590,1.9090815,133.87,133.81,9.48139293]
[1768812918193,7.47049155,133.86,133.81,9.48139293]
[1768812918370,1.54989055,133.85,133.81,9.48139293]
[1768812919893,1.54989055,133.85,133.78,2.00811281]
[1768812919894,42.50892024,133.85,133.78,2.00811281]
[1768812920077,42.50892024,133.85,133.79,2.00811281]
[1768812920568,42.50892024,133.85,133.8,2.00811281]
[1768812921168,7.47129604,133.85,133.81,7.47324167]
[1768812921397,7.47129604,133.85,133.82,2.00811281]
[1768812921790,7.47049155,133.86,133.82,2.00811281]
[1768812924084,23.83016412,133.87,133.83,2.03112747]
[1768812928995,7.47016412,133.87,133.83,2.03112747]
[1768812930088,26.14330441,133.88,133.83,2.03112747]
[1768812931202,26.14330441,133.88,133.82,2.03112747]
[1768812931580,44.82606469,133.88,133.82,2.03112747]
[1768812935697,26.14330441,133.88,133.83,2.03112747]
[1768812936199,48.56399123,133.88,133.83,2.03112747]
[1768812943305,1.93091897,133.87,133.79,7.47418668]
[1768812943489,1.93091897,133.85,133.78,7.47487881]
[1768812944793,9.40015605,133.84,133.78,7.47495888]
[1768812945209,9.40015605,133.84,133.79,1.98895249]
[1768812946215,29.89647309,133.86,133.79,1.98895249]
[1768812946404,7.47075828,133.86,133.79,1.98895249]
[1768812946714,9.3946462,133.86,133.81,1.98895249]